[Event "Titled Tuesday Blitz February 28 Late 2023"]
[White "Ponce Cano, Adrian"]
[Black "Dahlgren, James Allen"]
[WhiteFideId "22296913"]
[BlackFideId "22256873"]
[WhiteElo "2211"]
[BlackElo "2169"]
[Result "0-1"]
[Round "04"]
[TimeControl "180+2"]
[Date "2023.02.28"]
[WhiteClock "0:00:05"]
[BlackClock "0:00:05"]

1. e4 {[%clk 0:03:00]}  e6 {[%clk 0:03:00]} 2. Nf3 {[%clk 0:03:00]}  c5 {[%clk 0:03:00]} 3. d4 {[%clk 0:03:00]}  cxd4 {[%clk 0:03:01]} 4. Bg5 {[%clk 0:03:00]}  f6 {[%clk 0:03:00]} 5. Bc1 {[%clk 0:03:00]}  e5 {[%clk 0:03:00]} 6. Bc4 {[%clk 0:02:59]}  a6 {[%clk 0:02:58]} 7. a4 {[%clk 0:02:57]}  Ne7 {[%clk 0:02:56]} 8. c3 {[%clk 0:02:57]}  dxc3 {[%clk 0:02:56]} 9. Nxc3 {[%clk 0:02:57]}  d6 {[%clk 0:02:53]} 10. Qb3 {[%clk 0:02:54]}  Nbc6 {[%clk 0:02:46]} 11. Bf7+ {[%clk 0:02:50]}  Kd7 {[%clk 0:02:46]} 12. Be3 {[%clk 0:02:49]}  Na5 {[%clk 0:02:34]} 13. Be6+ {[%clk 0:02:46]}  Ke8 {[%clk 0:02:31]} 14. Bf7+ {[%clk 0:02:46]}  Kd7 {[%clk 0:02:31]} 15. Qa2 {[%clk 0:02:28]}  Nec6 {[%clk 0:02:28]} 16. Be6+ {[%clk 0:02:23]}  Kc7 {[%clk 0:02:19]} 17. Nd5+ {[%clk 0:02:22]}  Kb8 {[%clk 0:02:15]} 18. Bb6 {[%clk 0:02:22]}  Qe8 {[%clk 0:02:04]} 19. Bxc8 {[%clk 0:02:21]}  Qxc8 {[%clk 0:02:00]} 20. b4 {[%clk 0:02:20]}  Nxb4 {[%clk 0:01:52]} 21. Nxb4 {[%clk 0:02:17]}  Qc3+ {[%clk 0:01:50]} 22. Qd2 {[%clk 0:02:17]}  Qxa1+ {[%clk 0:01:39]} 23. Ke2 {[%clk 0:02:17]}  Qxa4 {[%clk 0:01:24]} 24. Bxa5 {[%clk 0:02:16]}  Qb5+ {[%clk 0:01:17]} 25. Nd3 {[%clk 0:02:13]}  d5 {[%clk 0:01:09]} 26. Rc1 {[%clk 0:02:11]}  dxe4 {[%clk 0:01:07]} 27. Bc7+ {[%clk 0:02:11]}  Kc8 {[%clk 0:00:58]} 28. Ba5+ {[%clk 0:01:37]}  Kd7 {[%clk 0:00:42]} 29. Rc7+ {[%clk 0:01:32]}  Ke8 {[%clk 0:00:42]} 30. Qa2 {[%clk 0:01:23]}  Qxd3+ {[%clk 0:00:23]} 31. Ke1 {[%clk 0:01:23]}  Be7 {[%clk 0:00:09]} 32. Nd2 {[%clk 0:00:32]}  Rd8 {[%clk 0:00:09]} 33. Qe6 {[%clk 0:00:28]}  Qd6 {[%clk 0:00:06]} 34. Qc4 {[%clk 0:00:24]}  b6 {[%clk 0:00:06]} 35. Bc3 {[%clk 0:00:23]}  b5 {[%clk 0:00:05]} 36. Qc6+ {[%clk 0:00:12]}  Qxc6 {[%clk 0:00:05]} 37. Rxc6 {[%clk 0:00:13]}  Ra8 {[%clk 0:00:04]} 38. Ba5 {[%clk 0:00:12]}  f5 {[%clk 0:00:04]} 39. Nb3 {[%clk 0:00:12]}  Kd7 {[%clk 0:00:04]} 40. Rc7+ {[%clk 0:00:12]}  Ke6 {[%clk 0:00:04]} 41. Rc6+ {[%clk 0:00:12]}  Kf7 {[%clk 0:00:04]} 42. Rc7 {[%clk 0:00:13]}  Rhc8 {[%clk 0:00:04]} 43. Rd7 {[%clk 0:00:12]}  Rc4 {[%clk 0:00:04]} 44. Rb7 {[%clk 0:00:12]}  Rac8 {[%clk 0:00:04]} 45. f3 {[%clk 0:00:11]}  Ke6 {[%clk 0:00:02]} 46. fxe4 {[%clk 0:00:11]}  Rxe4+ {[%clk 0:00:02]} 47. Kd2 {[%clk 0:00:11]}  Bd8 {[%clk 0:00:02]} 48. Bxd8 {[%clk 0:00:10]}  Rxd8+ {[%clk 0:00:03]} 49. Kc2 {[%clk 0:00:07]}  Rc4+ {[%clk 0:00:04]} 50. Kb2 {[%clk 0:00:06]}  Rd6 {[%clk 0:00:05]} 51. Rxg7 {[%clk 0:00:05]}  Rd3 {[%clk 0:00:05]} 52. Rxh7 {[%clk 0:00:05]}  Rb4 {[%clk 0:00:05]} 53. Rh6+ {[%clk 0:00:05]}  Kd5 {[%clk 0:00:05]} 54. Kc2 {[%clk 0:00:05]}  Rbxb3 {[%clk 0:00:04]} 55. g3 {[%clk 0:00:06]}  Rbc3+ {[%clk 0:00:04]} 56. Kb2 {[%clk 0:00:06]}  Kc4 {[%clk 0:00:05]} 57. Rxa6 {[%clk 0:00:05]}  Kb4 {[%clk 0:00:05]} 58. Rb6 {[%clk 0:00:04]}  Rd2+ {[%clk 0:00:05]} 59. Kb1 {[%clk 0:00:05]}  Rf3 {[%clk 0:00:05]} 60. Kc1 {[%clk 0:00:05]}  Rxh2 {[%clk 0:00:05]} 0-1


[Site "https://www.chess.com"]

[Event "Titled Tuesday Blitz February 28 Late 2023"]
[White "Sokolin, Leonid"]
[Black "Chemin, Justo Reinaldo"]
[WhiteFideId "2009161"]
[BlackFideId "2101580"]
[WhiteElo "2394"]
[BlackElo "1940"]
[Result "0-1"]
[Round "04"]
[TimeControl "180+2"]
[Date "2023.02.28"]
[WhiteClock "0:00:01"]
[BlackClock "0:00:05"]

1. e4 {[%clk 0:03:00]}  e6 {[%clk 0:02:33]} 2. d4 {[%clk 0:03:00]}  d5 {[%clk 0:02:28]} 3. Nc3 {[%clk 0:02:56]}  Nf6 {[%clk 0:02:28]} 4. e5 {[%clk 0:02:47]}  Nfd7 {[%clk 0:02:28]} 5. f4 {[%clk 0:02:42]}  c5 {[%clk 0:02:28]} 6. Nf3 {[%clk 0:02:39]}  Nc6 {[%clk 0:02:28]} 7. Be3 {[%clk 0:02:38]}  cxd4 {[%clk 0:02:20]} 8. Nxd4 {[%clk 0:02:36]}  a6 {[%clk 0:02:20]} 9. Qd2 {[%clk 0:02:33]}  Bb4 {[%clk 0:02:12]} 10. a3 {[%clk 0:02:31]}  Ba5 {[%clk 0:02:12]} 11. Nb3 {[%clk 0:02:28]}  Bb6 {[%clk 0:02:04]} 12. O-O-O {[%clk 0:02:28]}  Bxe3 {[%clk 0:01:55]} 13. Qxe3 {[%clk 0:02:27]}  Qb6 {[%clk 0:01:49]} 14. Qg3 {[%clk 0:02:12]}  O-O {[%clk 0:01:41]} 15. h4 {[%clk 0:02:04]}  f6 {[%clk 0:01:40]} 16. exf6 {[%clk 0:02:01]}  Rxf6 {[%clk 0:01:36]} 17. Bd3 {[%clk 0:01:52]}  Nc5 {[%clk 0:01:32]} 18. Nxc5 {[%clk 0:01:49]}  Qxc5 {[%clk 0:01:31]} 19. h5 {[%clk 0:01:47]}  h6 {[%clk 0:01:08]} 20. Rh4 {[%clk 0:01:23]}  Bd7 {[%clk 0:01:07]} 21. Rg4 {[%clk 0:01:22]}  Qe7 {[%clk 0:01:06]} 22. Re1 {[%clk 0:01:18]}  Qf8 {[%clk 0:00:52]} 23. Rg6 {[%clk 0:00:51]}  Ne7 {[%clk 0:00:42]} 24. Rxf6 {[%clk 0:00:45]}  Qxf6 {[%clk 0:00:42]} 25. Qh2 {[%clk 0:00:41]}  Rf8 {[%clk 0:00:41]} 26. g3 {[%clk 0:00:41]}  Nc6 {[%clk 0:00:33]} 27. Qf2 {[%clk 0:00:36]}  Be8 {[%clk 0:00:32]} 28. Qb6 {[%clk 0:00:34]}  Bxh5 {[%clk 0:00:30]} 29. Qxb7 {[%clk 0:00:33]}  Nd4 {[%clk 0:00:28]} 30. Qxa6 {[%clk 0:00:31]}  Bg4 {[%clk 0:00:20]} 31. Qd6 {[%clk 0:00:28]}  Nf3 {[%clk 0:00:19]} 32. Re2 {[%clk 0:00:24]}  h5 {[%clk 0:00:18]} 33. Nb5 {[%clk 0:00:21]}  h4 {[%clk 0:00:17]} 34. gxh4 {[%clk 0:00:20]}  Qxh4 {[%clk 0:00:15]} 35. b3 {[%clk 0:00:18]}  Qf6 {[%clk 0:00:12]} 36. Kb1 {[%clk 0:00:16]}  Nh4 {[%clk 0:00:05]} 37. Rh2 {[%clk 0:00:13]}  Nf3 {[%clk 0:00:03]} 38. Bh7+ {[%clk 0:00:11]}  Kf7 {[%clk 0:00:03]} 39. Qc7+ {[%clk 0:00:09]}  Qe7 {[%clk 0:00:04]} 40. Bg6+ {[%clk 0:00:07]}  Kf6 {[%clk 0:00:04]} 41. Qxe7+ {[%clk 0:00:02]}  Kxe7 {[%clk 0:00:04]} 42. Rg2 {[%clk 0:00:01]}  Rxf4 {[%clk 0:00:05]} 0-1


[Site "https://www.chess.com"]

[Event "Titled Tuesday Blitz February 28 Late 2023"]
[White "Bongo Akanga Ndjila, Barthelemy"]
[Black "Sreyas Payyappat"]
[WhiteFideId "10609431"]
[BlackFideId "46674969"]
[WhiteElo "1768"]
[BlackElo "2083"]
[Result "0-1"]
[Round "04"]
[TimeControl "180+2"]
[Date "2023.02.28"]
[WhiteClock "0:00:01"]
[BlackClock "0:01:46"]

1. d4 {[%clk 0:00:29]}  Nf6 {[%clk 0:02:19]} 2. c4 {[%clk 0:00:28]}  c5 {[%clk 0:02:19]} 3. d5 {[%clk 0:00:28]}  e6 {[%clk 0:02:19]} 4. Nc3 {[%clk 0:00:28]}  exd5 {[%clk 0:02:20]} 5. cxd5 {[%clk 0:00:29]}  d6 {[%clk 0:02:21]} 6. Bf4 {[%clk 0:00:27]}  g6 {[%clk 0:02:22]} 7. e3 {[%clk 0:00:26]}  Bg7 {[%clk 0:02:22]} 8. Nf3 {[%clk 0:00:26]}  O-O {[%clk 0:02:22]} 9. h3 {[%clk 0:00:27]}  Re8 {[%clk 0:02:22]} 10. Be2 {[%clk 0:00:26]}  Nbd7 {[%clk 0:02:06]} 11. O-O {[%clk 0:00:26]}  Nb6 {[%clk 0:02:04]} 12. a4 {[%clk 0:00:22]}  Bf5 {[%clk 0:02:01]} 13. a5 {[%clk 0:00:20]}  Nc8 {[%clk 0:02:00]} 14. g4 {[%clk 0:00:19]}  Be4 {[%clk 0:01:59]} 15. Nxe4 {[%clk 0:00:19]}  Nxe4 {[%clk 0:01:58]} 16. Qc2 {[%clk 0:00:18]}  f5 {[%clk 0:01:57]} 17. g5 {[%clk 0:00:15]}  Be5 {[%clk 0:01:49]} 18. Bxe5 {[%clk 0:00:14]}  dxe5 {[%clk 0:01:50]} 19. Rfd1 {[%clk 0:00:12]}  Ncd6 {[%clk 0:01:49]} 20. Bc4 {[%clk 0:00:04]}  Nxg5 {[%clk 0:01:47]} 21. Nxg5 {[%clk 0:00:03]}  Qxg5+ {[%clk 0:01:48]} 22. Kf1 {[%clk 0:00:03]}  Qh4 {[%clk 0:01:47]} 23. Kg2 {[%clk 0:00:02]}  Qxc4 {[%clk 0:01:46]} 24. Qxc4 {[%clk 0:00:02]}  Nxc4 {[%clk 0:01:47]} 25. Ra4 {[%clk 0:00:02]}  Nd6 {[%clk 0:01:47]} 26. Rc1 {[%clk 0:00:01]}  b5 {[%clk 0:01:46]} 0-1


[Site "https://www.chess.com"]

[Event "Titled Tuesday Blitz February 28 Late 2023"]
[White "Marcolino, Daniel Mattos"]
[Black "Backsten, Jan"]
[WhiteFideId "2106841"]
[BlackFideId "1735381"]
[WhiteElo "2115"]
[BlackElo "1967"]
[Result "1-0"]
[Round "04"]
[TimeControl "180+2"]
[Date "2023.02.28"]
[WhiteClock "0:00:14"]
[BlackClock "0:00:24"]

1. d4 {[%clk 0:03:00]}  Nf6 {[%clk 0:02:59]} 2. Nf3 {[%clk 0:03:01]}  g6 {[%clk 0:03:00]} 3. g3 {[%clk 0:03:01]}  Bg7 {[%clk 0:03:00]} 4. Bg2 {[%clk 0:03:02]}  O-O {[%clk 0:03:01]} 5. O-O {[%clk 0:03:02]}  d6 {[%clk 0:03:02]} 6. b3 {[%clk 0:03:02]}  Nbd7 {[%clk 0:02:58]} 7. Bb2 {[%clk 0:03:02]}  Ne4 {[%clk 0:02:58]} 8. Nbd2 {[%clk 0:02:55]}  Ndf6 {[%clk 0:02:56]} 9. Nxe4 {[%clk 0:02:53]}  Nxe4 {[%clk 0:02:57]} 10. c4 {[%clk 0:02:47]}  c6 {[%clk 0:02:26]} 11. Nd2 {[%clk 0:02:37]}  Nxd2 {[%clk 0:02:24]} 12. Qxd2 {[%clk 0:02:38]}  d5 {[%clk 0:02:21]} 13. e3 {[%clk 0:02:32]}  Bf5 {[%clk 0:02:20]} 14. Rfc1 {[%clk 0:02:27]}  b6 {[%clk 0:02:12]} 15. Ba3 {[%clk 0:02:12]}  Qd7 {[%clk 0:02:00]} 16. Rc3 {[%clk 0:01:56]}  Bf6 {[%clk 0:01:44]} 17. Rac1 {[%clk 0:01:52]}  Be4 {[%clk 0:01:34]} 18. f3 {[%clk 0:01:18]}  Bf5 {[%clk 0:01:33]} 19. cxd5 {[%clk 0:01:16]}  cxd5 {[%clk 0:01:33]} 20. Rc7 {[%clk 0:01:16]}  Qd8 {[%clk 0:01:21]} 21. Qc3 {[%clk 0:00:39]}  Rc8 {[%clk 0:01:13]} 22. Kf2 {[%clk 0:00:37]}  Re8 {[%clk 0:00:49]} 23. Rxc8 {[%clk 0:00:36]}  Qxc8 {[%clk 0:00:49]} 24. Qxc8 {[%clk 0:00:36]}  Rxc8 {[%clk 0:00:50]} 25. Rxc8+ {[%clk 0:00:35]}  Bxc8 {[%clk 0:00:51]} 26. Ke2 {[%clk 0:00:31]}  Kf8 {[%clk 0:00:50]} 27. f4 {[%clk 0:00:31]}  Bb7 {[%clk 0:00:49]} 28. Kd3 {[%clk 0:00:30]}  Ke8 {[%clk 0:00:49]} 29. g4 {[%clk 0:00:28]}  e6 {[%clk 0:00:47]} 30. g5 {[%clk 0:00:27]}  Bd8 {[%clk 0:00:44]} 31. h4 {[%clk 0:00:27]}  Ba6+ {[%clk 0:00:43]} 32. Kc3 {[%clk 0:00:25]}  Be2 {[%clk 0:00:43]} 33. Kd2 {[%clk 0:00:23]}  Bg4 {[%clk 0:00:43]} 34. Bf1 {[%clk 0:00:21]}  Be7 {[%clk 0:00:38]} 35. Bxe7 {[%clk 0:00:18]}  Kxe7 {[%clk 0:00:39]} 36. Bb5 {[%clk 0:00:17]}  Kd6 {[%clk 0:00:34]} 37. Kc3 {[%clk 0:00:18]}  a5 {[%clk 0:00:28]} 38. b4 {[%clk 0:00:16]}  Bd1 {[%clk 0:00:27]} 39. bxa5 {[%clk 0:00:16]}  bxa5 {[%clk 0:00:27]} 40. Be8 {[%clk 0:00:15]}  Ke7 {[%clk 0:00:27]} 41. Bb5 {[%clk 0:00:14]}  Kd6 {[%clk 0:00:26]} 42. Kd2 {[%clk 0:00:12]}  Bf3 {[%clk 0:00:26]} 43. Kc2 {[%clk 0:00:11]}  Be4+ {[%clk 0:00:16]} 44. Kb3 {[%clk 0:00:11]}  Kc7 {[%clk 0:00:12]} 45. Ka4 {[%clk 0:00:11]}  Kb6 {[%clk 0:00:11]} 46. Be8 {[%clk 0:00:11]}  Bc2+ {[%clk 0:00:12]} 47. Ka3 {[%clk 0:00:09]}  Bf5 {[%clk 0:00:10]} 48. Bxf7 {[%clk 0:00:09]}  Kc7 {[%clk 0:00:10]} 49. Bg8 {[%clk 0:00:10]}  Kd7 {[%clk 0:00:11]} 50. Bxh7 {[%clk 0:00:10]}  Ke7 {[%clk 0:00:11]} 51. Ka4 {[%clk 0:00:09]}  Kf7 {[%clk 0:00:11]} 52. Kxa5 {[%clk 0:00:09]}  Kg7 {[%clk 0:00:12]} 53. Bxg6 {[%clk 0:00:08]}  Kxg6 {[%clk 0:00:13]} 54. Kb6 {[%clk 0:00:07]}  Kh5 {[%clk 0:00:13]} 55. a4 {[%clk 0:00:07]}  Kxh4 {[%clk 0:00:13]} 56. a5 {[%clk 0:00:08]}  Bd3 {[%clk 0:00:12]} 57. a6 {[%clk 0:00:08]}  Bxa6 {[%clk 0:00:13]} 58. Kxa6 {[%clk 0:00:09]}  Kh5 {[%clk 0:00:12]} 59. Kb6 {[%clk 0:00:09]}  Kg6 {[%clk 0:00:13]} 60. Kc6 {[%clk 0:00:09]}  Kf7 {[%clk 0:00:14]} 61. Kd6 {[%clk 0:00:10]}  Kg6 {[%clk 0:00:15]} 62. Kxe6 {[%clk 0:00:10]}  Kh5 {[%clk 0:00:16]} 63. Kxd5 {[%clk 0:00:10]}  Kg6 {[%clk 0:00:16]} 64. Ke6 {[%clk 0:00:10]}  Kg7 {[%clk 0:00:16]} 65. Ke7 {[%clk 0:00:09]}  Kg6 {[%clk 0:00:17]} 66. f5+ {[%clk 0:00:08]}  Kxf5 {[%clk 0:00:18]} 67. d5 {[%clk 0:00:08]}  Kxg5 {[%clk 0:00:19]} 68. d6 {[%clk 0:00:08]}  Kf5 {[%clk 0:00:20]} 69. d7 {[%clk 0:00:09]}  Ke4 {[%clk 0:00:20]} 70. d8=Q {[%clk 0:00:09]}  Kxe3 {[%clk 0:00:21]} 71. Qd5 {[%clk 0:00:09]}  Kf4 {[%clk 0:00:22]} 72. Ke6 {[%clk 0:00:09]}  Ke3 {[%clk 0:00:23]} 73. Qc4 {[%clk 0:00:09]}  Kf3 {[%clk 0:00:23]} 74. Qd4 {[%clk 0:00:09]}  Ke2 {[%clk 0:00:22]} 75. Qc3 {[%clk 0:00:10]}  Kf2 {[%clk 0:00:22]} 76. Qd3 {[%clk 0:00:10]}  Ke1 {[%clk 0:00:23]} 77. Qc2 {[%clk 0:00:10]}  Kf1 {[%clk 0:00:23]} 78. Ke5 {[%clk 0:00:11]}  Kg1 {[%clk 0:00:24]} 79. Ke4 {[%clk 0:00:12]}  Kh1 {[%clk 0:00:25]} 80. Kf3 {[%clk 0:00:13]}  Kg1 {[%clk 0:00:24]} 81. Qg2# {[%clk 0:00:14]} 1-0


[Site "https://www.chess.com"]

[Event "Titled Tuesday Blitz February 28 Late 2023"]
[White "Vanek, Tomas"]
[Black "Dzierzak, Radoslaw"]
[WhiteFideId "313459"]
[BlackFideId "1161407"]
[WhiteElo "2052"]
[BlackElo "2166"]
[Result "0-1"]
[Round "04"]
[TimeControl "180+2"]
[Date "2023.02.28"]
[WhiteClock "0:00:18"]
[BlackClock "0:00:26"]

1. e4 {[%clk 0:02:59]}  c6 {[%clk 0:02:59]} 2. g3 {[%clk 0:02:58]}  d5 {[%clk 0:02:59]} 3. e5 {[%clk 0:02:58]}  c5 {[%clk 0:02:55]} 4. f4 {[%clk 0:02:57]}  Nc6 {[%clk 0:02:56]} 5. Bg2 {[%clk 0:02:58]}  Nh6 {[%clk 0:02:54]} 6. c3 {[%clk 0:02:57]}  Nf5 {[%clk 0:02:46]} 7. d3 {[%clk 0:02:56]}  h5 {[%clk 0:02:44]} 8. Ne2 {[%clk 0:02:54]}  h4 {[%clk 0:02:39]} 9. g4 {[%clk 0:02:54]}  h3 {[%clk 0:02:39]} 10. Bf1 {[%clk 0:02:46]}  Nh4 {[%clk 0:02:36]} 11. Ng3 {[%clk 0:02:42]}  g5 {[%clk 0:02:19]} 12. Bxh3 {[%clk 0:02:32]}  gxf4 {[%clk 0:02:13]} 13. Nf5 {[%clk 0:02:24]}  Ng6 {[%clk 0:02:05]} 14. Bg2 {[%clk 0:02:02]}  Ncxe5 {[%clk 0:02:05]} 15. Qe2 {[%clk 0:02:01]}  e6 {[%clk 0:01:50]} 16. d4 {[%clk 0:01:58]}  Nxg4 {[%clk 0:01:38]} 17. Qxg4 {[%clk 0:01:46]}  exf5 {[%clk 0:01:38]} 18. Qe2+ {[%clk 0:01:43]}  Be6 {[%clk 0:01:39]} 19. Na3 {[%clk 0:01:41]}  a6 {[%clk 0:01:17]} 20. O-O {[%clk 0:01:39]}  Qh4 {[%clk 0:01:15]} 21. Bxd5 {[%clk 0:01:35]}  O-O-O {[%clk 0:01:00]} 22. Bxe6+ {[%clk 0:01:33]}  fxe6 {[%clk 0:01:00]} 23. Qxe6+ {[%clk 0:01:25]}  Kb8 {[%clk 0:01:00]} 24. Rf2 {[%clk 0:01:14]}  Bd6 {[%clk 0:00:53]} 25. Nc4 {[%clk 0:00:46]}  Bc7 {[%clk 0:00:49]} 26. Bd2 {[%clk 0:00:33]}  f3 {[%clk 0:00:45]} 27. Ne5 {[%clk 0:00:26]}  Nxe5 {[%clk 0:00:40]} 28. dxe5 {[%clk 0:00:26]}  Rhg8+ {[%clk 0:00:28]} 29. Kf1 {[%clk 0:00:18]}  Qh3+ {[%clk 0:00:25]} 30. Ke1 {[%clk 0:00:18]}  Rg1+ {[%clk 0:00:26]} 31. Rf1 {[%clk 0:00:18]}  Qxf1# {[%clk 0:00:26]} 0-1


[Site "https://www.chess.com"]

[Event "Titled Tuesday Blitz February 28 Late 2023"]
[White "Slade, Theodore"]
[Black "Dorato, Adriano"]
[WhiteFideId "426547"]
[BlackFideId "2802894"]
[WhiteElo "1964"]
[BlackElo "1709"]
[Result "1-0"]
[Round "04"]
[TimeControl "180+2"]
[Date "2023.02.28"]
[WhiteClock "0:00:59"]
[BlackClock "0:00:16"]

1. d4 {[%clk 0:03:00]}  d5 {[%clk 0:02:57]} 2. c4 {[%clk 0:03:00]}  e6 {[%clk 0:02:57]} 3. Nf3 {[%clk 0:03:01]}  Nf6 {[%clk 0:02:56]} 4. g3 {[%clk 0:03:01]}  c6 {[%clk 0:02:54]} 5. Bg2 {[%clk 0:03:02]}  Be7 {[%clk 0:02:55]} 6. O-O {[%clk 0:03:02]}  b6 {[%clk 0:02:55]} 7. Qc2 {[%clk 0:03:00]}  Bb7 {[%clk 0:02:56]} 8. b3 {[%clk 0:03:00]}  O-O {[%clk 0:02:56]} 9. Bb2 {[%clk 0:03:00]}  Nbd7 {[%clk 0:02:56]} 10. Nc3 {[%clk 0:03:00]}  Rc8 {[%clk 0:02:54]} 11. Rfd1 {[%clk 0:02:59]}  c5 {[%clk 0:02:54]} 12. cxd5 {[%clk 0:02:50]}  Nxd5 {[%clk 0:02:50]} 13. Nxd5 {[%clk 0:02:48]}  Bxd5 {[%clk 0:02:42]} 14. e4 {[%clk 0:02:32]}  Bc6 {[%clk 0:02:40]} 15. d5 {[%clk 0:02:31]}  exd5 {[%clk 0:02:39]} 16. exd5 {[%clk 0:02:32]}  Bb7 {[%clk 0:02:37]} 17. d6 {[%clk 0:02:20]}  Bf6 {[%clk 0:02:32]} 18. Ng5 {[%clk 0:02:16]}  Bxg5 {[%clk 0:02:19]} 19. Bxb7 {[%clk 0:02:16]}  Rb8 {[%clk 0:02:20]} 20. Be4 {[%clk 0:02:12]}  h6 {[%clk 0:02:18]} 21. h4 {[%clk 0:01:56]}  Bf6 {[%clk 0:02:15]} 22. Re1 {[%clk 0:01:54]}  Bxb2 {[%clk 0:02:04]} 23. Qxb2 {[%clk 0:01:55]}  Qf6 {[%clk 0:02:04]} 24. Qd2 {[%clk 0:01:46]}  Rfd8 {[%clk 0:01:51]} 25. Kg2 {[%clk 0:01:43]}  Nf8 {[%clk 0:01:37]} 26. Rad1 {[%clk 0:01:42]}  Ne6 {[%clk 0:01:33]} 27. Bb1 {[%clk 0:01:28]}  Nd4 {[%clk 0:01:30]} 28. Qd3 {[%clk 0:01:28]}  g6 {[%clk 0:01:26]} 29. h5 {[%clk 0:01:28]}  Kg7 {[%clk 0:01:22]} 30. hxg6 {[%clk 0:01:28]}  Rxd6 {[%clk 0:01:00]} 31. gxf7 {[%clk 0:01:27]}  Rh8 {[%clk 0:00:50]} 32. Re8 {[%clk 0:01:21]}  Qxf7 {[%clk 0:00:43]} 33. Rxh8 {[%clk 0:01:18]}  Kxh8 {[%clk 0:00:43]} 34. Qe4 {[%clk 0:01:11]}  Qd5 {[%clk 0:00:36]} 35. Qxd5 {[%clk 0:01:10]}  Rxd5 {[%clk 0:00:36]} 36. f4 {[%clk 0:01:07]}  Rd7 {[%clk 0:00:34]} 37. Re1 {[%clk 0:01:02]}  Kg7 {[%clk 0:00:32]} 38. g4 {[%clk 0:01:01]}  Rf7 {[%clk 0:00:29]} 39. Kg3 {[%clk 0:01:00]}  Rd7 {[%clk 0:00:22]} 40. g5 {[%clk 0:00:59]}  hxg5 {[%clk 0:00:22]} 41. fxg5 {[%clk 0:01:00]}  Nf5+ {[%clk 0:00:20]} 42. Bxf5 {[%clk 0:00:59]}  Rf7 {[%clk 0:00:18]} 43. Kg4 {[%clk 0:00:58]}  Rc7 {[%clk 0:00:17]} 44. Rh1 {[%clk 0:00:58]}  Kf8 {[%clk 0:00:16]} 45. Rh8+ {[%clk 0:00:58]}  Kg7 {[%clk 0:00:16]} 46. Rh7+ {[%clk 0:00:59]} 1-0


[Site "https://www.chess.com"]

[Event "Titled Tuesday Blitz February 28 Late 2023"]
[White "Buchenau, Frank"]
[Black "Papasimakopoulos, Alexandros"]
[WhiteFideId "4604350"]
[BlackFideId "4244125"]
[WhiteElo "2157"]
[BlackElo "2359"]
[Result "0-1"]
[Round "04"]
[TimeControl "180+2"]
[Date "2023.02.28"]
[WhiteClock "0:00:27"]
[BlackClock "0:00:28"]

1. e4 {[%clk 0:03:00]}  e6 {[%clk 0:01:14]} 2. d4 {[%clk 0:02:58]}  d5 {[%clk 0:01:15]} 3. Nd2 {[%clk 0:02:57]}  Nf6 {[%clk 0:01:14]} 4. e5 {[%clk 0:02:56]}  Nfd7 {[%clk 0:01:15]} 5. c3 {[%clk 0:02:56]}  c5 {[%clk 0:01:16]} 6. Bd3 {[%clk 0:02:55]}  Nc6 {[%clk 0:01:17]} 7. Ne2 {[%clk 0:02:43]}  cxd4 {[%clk 0:01:18]} 8. cxd4 {[%clk 0:02:42]}  f6 {[%clk 0:01:18]} 9. exf6 {[%clk 0:02:40]}  Nxf6 {[%clk 0:01:19]} 10. Nf3 {[%clk 0:02:37]}  Bd6 {[%clk 0:01:20]} 11. Bf4 {[%clk 0:02:36]}  Qa5+ {[%clk 0:01:21]} 12. Qd2 {[%clk 0:02:28]}  Qxd2+ {[%clk 0:01:19]} 13. Kxd2 {[%clk 0:02:24]}  Bb4+ {[%clk 0:01:20]} 14. Nc3 {[%clk 0:02:21]}  Ne4+ {[%clk 0:01:17]} 15. Bxe4 {[%clk 0:02:06]}  dxe4 {[%clk 0:01:18]} 16. Ng5 {[%clk 0:02:06]}  O-O {[%clk 0:01:11]} 17. Be3 {[%clk 0:01:55]}  Rd8 {[%clk 0:01:06]} 18. Rad1 {[%clk 0:01:42]}  e5 {[%clk 0:01:05]} 19. d5 {[%clk 0:01:36]}  Bg4 {[%clk 0:00:48]} 20. Rde1 {[%clk 0:01:20]}  Rxd5+ {[%clk 0:00:45]} 21. Kc1 {[%clk 0:01:20]}  Bxc3 {[%clk 0:00:40]} 22. bxc3 {[%clk 0:01:20]}  Bf5 {[%clk 0:00:39]} 23. g4 {[%clk 0:00:50]}  Bg6 {[%clk 0:00:38]} 24. h4 {[%clk 0:00:46]}  h6 {[%clk 0:00:38]} 25. Ne6 {[%clk 0:00:45]}  b6 {[%clk 0:00:31]} 26. Nc7 {[%clk 0:00:43]}  Rad8 {[%clk 0:00:29]} 27. Nxd5 {[%clk 0:00:43]}  Rxd5 {[%clk 0:00:30]} 28. h5 {[%clk 0:00:42]}  Bf7 {[%clk 0:00:29]} 29. Bd2 {[%clk 0:00:41]}  Ra5 {[%clk 0:00:29]} 30. Rxe4 {[%clk 0:00:37]}  Bd5 {[%clk 0:00:29]} 31. Rhe1 {[%clk 0:00:31]}  Bxe4 {[%clk 0:00:29]} 32. Rxe4 {[%clk 0:00:31]}  Rxa2 {[%clk 0:00:30]} 33. Rc4 {[%clk 0:00:29]}  Na5 {[%clk 0:00:30]} 34. Rc7 {[%clk 0:00:27]}  Nb3+ {[%clk 0:00:28]} 0-1


[Site "https://www.chess.com"]